fUSD/lending_fUSD_20250112
["ID","MTS","AMOUNT","RATE_DAILY","PERIOD"]
[348604433,1736667050189,-540.94,0.00010383,2]
[348604434,1736667050198,-500.0,0.00010383,2]
[348604435,1736667050207,-500.0,0.00010383,2]
[348604436,1736667050216,-500.0,0.00010383,2]
[348604437,1736667050225,-761.91,0.00010383,2]
[348604438,1736667050234,-756.44,0.00010383,2]
[348604439,1736667050243,-816.1,0.00010383,2]
[348604440,1736667050252,-500.0,0.00010383,2]
[348604441,1736667050262,-500.0,0.00010383,2]
[348604442,1736667050271,-639.6,0.00010383,2]
[348604443,1736667050280,-771.9,0.00010383,2]
[348604444,1736667050289,-784.46,0.00010383,2]
[348604445,1736667050299,-661.99,0.00010383,2]
[348604446,1736667050308,-500.0,0.00010383,2]
[348604447,1736667050318,-500.0,0.00010383,2]
[348604448,1736667050328,-500.0,0.00010383,2]
[348604449,1736667050338,-615.1,0.00010383,2]
[348604450,1736667050347,-698.67,0.00010383,2]
[348604451,1736667050356,-537.18,0.00010383,2]
[348604452,1736667050367,-501.04,0.00010383,2]
[348604453,1736667050378,-1394.6,0.00010383,2]
[348604454,1736667050387,-655.9,0.00010383,2]
[348604455,1736667050397,-500.0,0.00010383,2]
[348604456,1736667050407,-500.0,0.00010383,2]
[348604457,1736667050416,-500.0,0.00010383,2]
[348604458,1736667050426,-500.0,0.00010383,2]
[348604459,1736667050435,-582.13,0.00010383,2]
[348604460,1736667050444,-668.04,0.00010383,2]
[348604461,1736667050454,-4381.55,0.00010383,2]
[348604462,1736667050464,-903.65,0.00010383,2]
[348604463,1736667050474,-2711.95,0.00010383,2]
[348604464,1736667050484,-515.95,0.00010383,2]
[348604465,1736667050494,-633.91,0.00010383,2]
[348604466,1736667050504,-624.04,0.00010383,2]
[348604467,1736667050513,-500.0,0.00010383,2]
[348604468,1736667050522,-746.76,0.00010383,2]
[348604469,1736667050532,-2853.92,0.00010383,2]
[348604470,1736667050541,-500.0,0.00010383,2]
[348604471,1736667050551,-500.0,0.00010383,2]
[348604472,1736667050562,-570.29,0.00010383,2]
[348604473,1736667050571,-837.01,0.00010383,2]
[348604474,1736667050582,-500.0,0.00010383,2]
[348604475,1736667050591,-763.16,0.00010383,2]
[348604476,1736667050600,-150.0,0.00010386,2]
[348604477,1736667050610,-150.0,0.00010395,2]
[348604478,1736667050620,-150.0,0.00010403,2]
[348604479,1736667050629,-150.0,0.00010411,2]
[348604480,1736667050643,-150.0,0.00010411,2]
[348604481,1736667050802,-944.31,0.00010417,2]
[348604482,1736667050814,-150.0,0.00010419,2]
[348604483,1736667050824,-150.0,0.00010427,2]
[348604484,1736667050834,-150.0,0.00010436,2]
[348604485,1736667050843,-1643.93600025,0.00010441,2]
[348604486,1736667050852,-150.0,0.00010447,2]
[348604487,1736667050863,-150.0,0.00010453,2]
[348604488,1736667050873,-150.0,0.00010458,2]
[348604489,1736667050883,-150.0,0.0001047,2]
[348604490,1736667050892,-150.0,0.00010484,2]
[348604491,1736667050901,-150.0,0.00010487,2]
[348604492,1736667050910,-150.0,0.00010489,2]
[348604493,1736667050919,-1422.29216913,0.00010498,5]
[348604494,1736667050930,-150.0,0.00010504,2]
[348604495,1736667050940,-793.42271535,0.00010519,2]
[348604496,1736667050950,-150.0,0.00010521,2]
[348604497,1736667050960,-150.0,0.00010521,2]
[348604498,1736667050970,-150.0,0.00010521,2]
[348604499,1736667050981,-1000.0,0.00010521,2]
[348604500,1736667050990,-150.0,0.00010537,2]
[348604501,1736667050999,-1643.93600025,0.00010548,2]
[348604502,1736667051007,-150.0,0.00010552,2]
[348604503,1736667051016,-150.0,0.00010554,2]
[348604504,1736667051026,-150.0,0.00010557,2]
[348604505,1736667051035,-150.0,0.00010571,2]
[348604506,1736667051047,-150.0,0.00010583,2]
[348604507,1736667051058,-150.0,0.00010588,2]
[348604508,1736667051067,-150.0,0.00010594,2]
[348604509,1736667051078,-150.0,0.00010594,2]
[348604510,1736667051087,-1400.0,0.000106,3]
[348604511,1736667051098,-150.0,0.00010605,2]
[348604512,1736667051108,-150.0,0.00010614,2]
[348604513,1736667051119,-500.0,0.00010617,2]
[348604514,1736667051130,-500.0,0.00010617,2]
[348604515,1736667051141,-500.0,0.00010617,2]
[348604516,1736667051150,-500.0,0.00010617,2]
[348604517,1736667051160,-500.0,0.00010617,2]
[348604518,1736667051170,-500.0,0.00010617,2]
[348604519,1736667051181,-500.0,0.00010617,2]
[348604520,1736667051191,-500.0,0.00010617,2]
[348604521,1736667051200,-500.0,0.00010617,2]
[348604522,1736667051210,-500.0,0.00010617,2]
[348604523,1736667051219,-500.0,0.00010617,2]
[348604524,1736667051228,-541.12865123,0.00010617,2]
[348604525,1736667051237,-500.0,0.00010617,2]
[348604526,1736667051246,-545.63,0.00010617,2]
[348604527,1736667051257,-500.0,0.00010617,2]
[348604528,1736667051266,-500.0,0.00010617,2]
[348604529,1736667051276,-500.0,0.00010617,2]
[348604530,1736667051286,-500.0,0.00010617,2]
[348604531,1736667051297,-500.0,0.00010617,2]
[348604532,1736667051307,-500.0,0.00010617,2]
[348604533,1736667051317,-500.0,0.00010617,2]
[348604534,1736667051326,-500.0,0.00010617,2]
[348604535,1736667051335,-500.0,0.00010617,2]
[348604536,1736667051344,-500.0,0.00010617,2]
[348604537,1736667051353,-500.0,0.00010617,2]
[348604538,1736667051362,-500.0,0.00010617,2]
[348604539,1736667051371,-500.0,0.00010617,2]
[348604540,1736667051380,-500.0,0.00010617,2]
[348604541,1736667051389,-500.0,0.00010617,2]
[348604542,1736667051399,-500.0,0.00010617,2]
[348604543,1736667051408,-500.0,0.00010617,2]
[348604544,1736667051417,-500.0,0.00010617,2]
[348604545,1736667051427,-526.93,0.00010617,2]
[348604546,1736667051436,-500.0,0.00010617,2]
[348604547,1736667051446,-500.0,0.00010617,2]
[348604548,1736667051456,-509.91,0.00010617,2]
[348604549,1736667051465,-540.29,0.00010617,2]
[348604550,1736667051475,-500.0,0.00010617,2]
[348604551,1736667051485,-500.0,0.00010617,2]
[348604552,1736667051495,-500.0,0.00010617,2]
[348604553,1736667051504,-500.0,0.00010617,2]
[348604554,1736667051514,-500.0,0.00010617,2]
[348604555,1736667051523,-500.0,0.00010617,2]
[348604556,1736667051533,-500.0,0.00010617,2]
[348604557,1736667051543,-500.0,0.00010617,2]
[348604558,1736667051552,-500.0,0.00010617,2]
[348604559,1736667051561,-500.0,0.00010617,2]
[348604560,1736667051571,-500.0,0.00010617,2]
[348604561,1736667051580,-500.0,0.00010617,2]
[348604562,1736667051589,-836.34,0.00010617,2]
[348604563,1736667051598,-500.0,0.00010617,2]
[348604564,1736667051607,-500.0,0.00010617,2]
[348604565,1736667051615,-500.0,0.00010617,2]
[348604566,1736667051625,-500.0,0.00010617,2]
[348604567,1736667051638,-500.0,0.00010617,2]
[348604568,1736667051647,-751.36,0.00010617,2]
[348604569,1736667051656,-505.08,0.00010617,2]
[348604570,1736667051665,-500.0,0.00010617,2]
[348604571,1736667051676,-500.0,0.00010617,2]
[348604572,1736667051685,-691.57,0.00010617,2]
[348604573,1736667051694,-500.0,0.00010617,2]
[348604574,1736667051704,-1015.42,0.00010617,2]
[348604575,1736667051713,-500.0,0.00010617,2]
[348604576,1736667051723,-500.0,0.00010617,2]
[348604577,1736667051732,-500.0,0.00010617,2]
[348604578,1736667051741,-500.0,0.00010617,2]
[348604579,1736667051750,-533.72,0.00010617,2]
[348604580,1736667051759,-500.0,0.00010617,2]
[348604581,1736667051768,-500.0,0.00010617,2]
[348604582,1736667051778,-1045.02,0.00010617,2]
[348604583,1736667051787,-500.0,0.00010617,2]
[348604584,1736667051796,-500.0,0.00010617,2]
[348604585,1736667051806,-806.48,0.00010617,2]
[348604586,1736667051815,-534.86,0.00010617,2]
[348604587,1736667051824,-500.0,0.00010617,2]
[348604588,1736667051833,-1185.19,0.00010617,2]
[348604589,1736667051842,-500.0,0.00010617,2]
[348604590,1736667051851,-1307.51,0.00010617,2]
[348604591,1736667051860,-500.0,0.00010617,2]
[348604592,1736667051869,-500.0,0.00010617,2]
[348604593,1736667051878,-703.0,0.00010618,2]
[348604594,1736667051888,-1472.45,0.00010618,2]
[348604595,1736667051897,-1539.3,0.00010618,2]
[348604596,1736667051907,-2243.62,0.00010618,2]
[348604597,1736667051916,-6122.95,0.00010618,2]
[348604598,1736667051925,-1039.19,0.00010618,2]
[348604599,1736667051934,-740.68,0.00010618,2]
[348604600,1736667051943,-807.26,0.00010618,2]
[348604601,1736667051952,-2507.28,0.00010618,2]
[348604602,1736667051962,-500.0,0.00010618,2]
[348604603,1736667051971,-1678.74,0.00010618,2]
[348604604,1736667051980,-852.32,0.00010618,2]
[348604605,1736667051989,-1000.0,0.00010618,2]
[348604606,1736667051998,-1096.05,0.00010618,2]
[348604607,1736667052007,-856.61,0.00010618,2]
[348604608,1736667052016,-704.94,0.00010619,2]
[348604609,1736667052025,-500.0,0.00010619,2]
[348604610,1736667052034,-677.68,0.00010619,2]
[348604611,1736667052043,-753.88,0.00010619,2]
[348604612,1736667052052,-688.74,0.00010619,2]
[348604613,1736667052061,-500.0,0.00010619,2]
[348604614,1736667052071,-549.46,0.00010619,2]
[348604615,1736667052080,-500.0,0.00010619,2]
[348604616,1736667052090,-560.82,0.00010619,2]
[348604617,1736667052099,-500.0,0.00010619,2]
[348604618,1736667052108,-500.0,0.00010619,2]
[348604619,1736667052117,-500.0,0.00010619,2]
[348604620,1736667052126,-525.31,0.00010619,2]
[348604621,1736667052135,-500.0,0.00010619,2]
[348604622,1736667052144,-723.97,0.00010619,2]
[348604623,1736667052153,-500.0,0.00010619,2]
[348604624,1736667052163,-500.0,0.00010619,2]
[348604625,1736667052172,-500.0,0.00010619,2]
[348604626,1736667052181,-783.53,0.00010619,2]
[348604627,1736667052190,-500.0,0.00010619,2]
[348604628,1736667052199,-500.0,0.00010619,2]
[348604629,1736667052207,-853.38,0.00010619,2]
[348604630,1736667052217,-500.0,0.00010619,2]
[348604631,1736667052226,-529.78,0.00010619,2]
[348604632,1736667052235,-576.25,0.00010619,2]
[348604633,1736667052244,-500.0,0.00010619,2]
[348604634,1736667052253,-681.57,0.00010619,2]
[348604635,1736667052262,-648.72,0.00010619,2]
[348604636,1736667052271,-500.0,0.00010619,2]
[348604637,1736667052279,-680.63,0.00010619,2]
[348604638,1736667052288,-500.0,0.00010619,2]
[348604639,1736667052297,-555.22,0.00010619,2]
[348604640,1736667052307,-577.37,0.00010619,2]
[348604641,1736667052316,-500.0,0.00010619,2]
[348604642,1736667052325,-689.48,0.00010619,2]
[348604643,1736667052334,-500.0,0.00010619,2]
[348604644,1736667052343,-500.0,0.00010619,2]
[348604645,1736667052352,-500.0,0.00010619,2]
[348604646,1736667052361,-655.47,0.00010619,2]
[348604647,1736667052369,-724.04,0.00010619,2]
[348604648,1736667052378,-500.0,0.00010619,2]
[348604649,1736667052387,-500.0,0.00010619,2]
[348604650,1736667052396,-682.89,0.00010619,2]
[348604651,1736667052405,-886.81,0.00010619,2]
[348604652,1736667052414,-500.0,0.00010619,2]
[348604653,1736667052423,-500.0,0.00010619,2]
[348604654,1736667052432,-500.0,0.00010619,2]
[348604655,1736667052441,-500.0,0.00010619,2]
[348604656,1736667052450,-150.0,0.00010619,2]
[348604657,1736667052460,-559.73,0.00010619,2]
[348604658,1736667052469,-500.0,0.00010619,2]
[348604659,1736667052478,-542.39,0.00010619,2]
[348604660,1736667052487,-979.06,0.00010619,2]
[348604661,1736667052496,-816.58,0.00010619,2]
[348604662,1736667052505,-955.54,0.00010619,2]
[348604663,1736667052514,-931.46,0.00010619,2]
[348604664,1736667052523,-500.0,0.00010619,2]
[348604665,1736667052533,-528.71,0.00010619,2]
[348604666,1736667052542,-500.0,0.00010619,2]
[348604667,1736667052552,-500.0,0.00010619,2]
[348604668,1736667052561,-500.0,0.00010619,2]
[348604669,1736667052571,-500.0,0.00010619,2]
[348604670,1736667052580,-500.0,0.00010619,2]
[348604671,1736667052589,-2293.17,0.00010619,2]
[348604672,1736667052597,-614.31,0.00010619,2]
[348604673,1736667052606,-500.0,0.00010619,2]
[348604674,1736667052615,-500.0,0.00010619,2]
[348604675,1736667052624,-1906.57,0.00010619,2]
[348604676,1736667052636,-1140.71,0.0001062,2]
[348604677,1736667052646,-985.55,0.0001062,2]
[348604678,1736667052655,-1243.23,0.0001062,2]
[348604679,1736667052664,-856.77,0.0001062,2]
[348604680,1736667052673,-2013.23,0.0001062,2]
[348604681,1736667052683,-1135.39,0.0001062,2]
[348604682,1736667052692,-2416.87,0.0001062,2]
[348604683,1736667052701,-3164.76,0.0001062,2]
[348604684,1736667052712,-628.2888686,0.0001062,2]
[348604685,1736667052721,-500.0,0.0001062,2]
[348604686,1736667052730,-500.0,0.0001062,2]
[348604687,1736667052739,-500.0,0.0001062,2]
[348604688,1736667052748,-1443.41,0.0001062,2]
[348604689,1736667052758,-500.0,0.0001062,2]
[348604690,1736667052767,-500.0,0.0001062,2]
[348604691,1736667052776,-500.0,0.0001062,2]
[348604692,1736667052785,-3815.79,0.0001062,2]
[348604693,1736667052795,-500.0,0.0001062,2]
[348604694,1736667052803,-500.0,0.0001062,2]
[348604695,1736667052812,-500.0,0.0001062,2]
[348604696,1736667052821,-500.0,0.0001062,2]
[348604697,1736667052830,-500.0,0.0001062,2]
[348604698,1736667052839,-500.0,0.0001062,2]
[348604699,1736667052849,-500.0,0.0001062,2]
[348604700,1736667052858,-500.0,0.0001062,2]
[348604701,1736667052868,-1152.21,0.0001062,2]
[348604702,1736667052877,-500.0,0.0001062,2]
[348604703,1736667052887,-696.73,0.0001062,2]
[348604704,1736667052896,-500.0,0.0001062,2]
[348604705,1736667052905,-1011.22,0.0001062,2]
[348604706,1736667052915,-514.87,0.0001062,2]
[348604707,1736667052924,-500.0,0.0001062,2]
[348604708,1736667052934,-658.24,0.0001062,2]
[348604709,1736667052943,-500.0,0.0001062,2]
[348604710,1736667052955,-686.12,0.0001062,2]
[348604711,1736667052965,-534.04,0.0001062,2]
[348604712,1736667052975,-500.0,0.0001062,2]
[348604713,1736667052985,-1459.5,0.0001062,2]
[348604714,1736667052996,-791.96,0.0001062,2]
[348604715,1736667053004,-500.0,0.0001062,2]
[348604716,1736667053015,-500.0,0.0001062,2]
[348604717,1736667053023,-500.0,0.0001062,2]
[348604718,1736667053032,-1493.23,0.0001062,2]
[348604719,1736667053042,-901.06,0.0001062,2]
[348604720,1736667053051,-507.1,0.0001062,2]
[348604721,1736667053060,-515.33,0.0001062,2]
[348604722,1736667053069,-1868.15,0.0001062,2]
[348604723,1736667053078,-500.0,0.0001062,2]
[348604724,1736667053087,-916.02,0.0001062,2]
[348604725,1736667053096,-500.0,0.0001062,2]
[348604726,1736667053105,-1355.39,0.0001062,2]
[348604727,1736667053115,-645.68,0.0001062,2]
[348604728,1736667053124,-500.0,0.0001062,2]
[348604729,1736667053133,-3514.58,0.0001062,2]
[348604730,1736667053142,-500.0,0.0001062,2]
[348604731,1736667053151,-1548.15,0.0001062,2]
[348604732,1736667053160,-2255.89,0.0001062,2]
[348604733,1736667053169,-1366.82,0.0001062,2]
[348604734,1736667053180,-1534.83,0.0001062,2]
[348604735,1736667053189,-500.0,0.0001062,2]
[348604736,1736667053199,-832.36,0.0001062,2]
[348604737,1736667053208,-1983.26,0.0001062,2]
[348604738,1736667053217,-150.0,0.00010622,2]
[348604739,1736667053227,-150.0,0.0001063,2]
[348604740,1736667053236,-150.0,0.00010639,2]
[348604741,1736667053245,-3253.45,0.00010642,2]
[348604742,1736667053256,-1072.73,0.00010642,2]
[348604743,1736667053266,-625.9,0.00010642,2]
[348604744,1736667053275,-500.0,0.00010642,2]
[348604745,1736667053285,-952.54,0.00010642,2]
[348604746,1736667053295,-500.0,0.00010642,2]
[348604747,1736667053305,-3429.69,0.00010642,2]
[348604748,1736667053314,-1216.87,0.00010642,2]
[348604749,1736667053324,-3245.02,0.00010642,2]
[348604750,1736667053333,-2519.46,0.00010642,2]
[348604751,1736667053342,-8206.37,0.00010642,2]
[348604752,1736667053351,-500.0,0.00010642,2]
[348604753,1736667053360,-813.0,0.00010642,2]
[348604754,1736667053369,-1165.52,0.00010642,2]
[348604755,1736667053379,-2102.98,0.00010642,2]
[348604756,1736667053388,-500.0,0.00010642,2]
[348604757,1736667053398,-5284.68,0.00010642,2]
[348604758,1736667053407,-1032.55,0.00010642,2]
[348604759,1736667053416,-1328.96,0.00010642,2]
[348604760,1736667053425,-866.63,0.00010642,2]
[348604761,1736667053435,-562.51,0.00010642,2]
[348604762,1736667053444,-1899.49,0.00010642,2]
[348604763,1736667053452,-1425.35,0.00010642,2]
[348604764,1736667053461,-150.0,0.00010646,2]
[348604765,1736667053470,-150.0,0.00010646,2]
[348604766,1736667053479,-500.0,0.00010646,2]
[348604767,1736667053488,-1643.93600025,0.00010655,2]
[348604768,1736667053497,-150.0,0.00010655,2]
[348604769,1736667053506,-1828.46,0.00010656,2]
[348604770,1736667053515,-1141.28,0.00010656,2]
[348604771,1736667053524,-827.4,0.00010656,2]
[348604772,1736667053534,-1689.13,0.00010656,2]
[348604773,1736667053544,-500.0,0.00010656,2]
[348604774,1736667053553,-2121.53,0.00010656,2]
[348604775,1736667053562,-2255.31,0.00010656,2]
[348604776,1736667053571,-3126.59,0.00010656,2]
[348604777,1736667053581,-1903.88,0.00010656,2]
[348604778,1736667053590,-1771.71,0.00010656,2]
[348604779,1736667053599,-500.0,0.00010656,2]
[348604780,1736667053609,-1314.7,0.00010656,2]
[348604781,1736667053618,-3323.35,0.00010656,2]
[348604782,1736667053627,-740.433425,0.00010656,2]
[348604783,1736667053640,-1532.36,0.00010656,2]
[348604784,1736667053649,-1280.06,0.00010656,2]
[348604785,1736667053658,-500.0,0.00010656,2]
[348604786,1736667053667,-774.04068,0.00010656,2]
[348604787,1736667053677,-500.0,0.00010656,2]
[348604788,1736667053687,-1201.32,0.00010656,2]
[348604789,1736667053697,-915.0,0.00010656,2]
[348604790,1736667053706,-988.31,0.00010656,2]
[348604791,1736667053717,-594.17,0.00010656,2]
[348604792,1736667053731,-1018.91,0.00010656,2]
[348604793,1736667053740,-883.99,0.00010656,2]
[348604794,1736667053929,-2167.53,0.00010656,2]
[348604795,1736667053940,-508.33,0.00010657,2]
[348604796,1736667053950,-610.03,0.00010657,2]
[348604797,1736667053960,-500.0,0.00010657,2]
[348604798,1736667053969,-950.37,0.00010657,2]
[348604799,1736667053979,-659.75,0.00010657,2]
[348604800,1736667053988,-744.04,0.00010657,2]
[348604801,1736667053998,-829.84,0.00010657,2]
[348604802,1736667054007,-557.69,0.00010657,2]
[348604803,1736667054016,-500.0,0.00010657,2]
[348604804,1736667054026,-500.0,0.00010657,2]
[348604805,1736667054035,-500.0,0.00010657,2]
[348604806,1736667054043,-649.54,0.00010657,2]
[348604807,1736667054053,-799.04,0.00010657,2]
[348604808,1736667054062,-417.00109393,0.00010657,2]
[348604809,1736667054071,-849.46,0.00010657,2]
[348604810,1736667054081,-500.0,0.00010657,2]
[348604811,1736667054090,-735.55,0.00010657,2]
[348604812,1736667054099,-500.0,0.00010657,2]
[348604813,1736667054108,-500.0,0.00010657,2]
[348604814,1736667054117,-500.0,0.00010657,2]
[348604815,1736667054126,-500.0,0.00010657,2]
[348604816,1736667054135,-887.28,0.00010657,2]
[348604817,1736667054144,-500.0,0.00010657,2]
[348604818,1736667054153,-500.0,0.00010657,2]
[348604819,1736667054163,-808.9,0.00010657,2]
[348604820,1736667054171,-570.07,0.00010657,2]
[348604821,1736667054181,-830.85,0.00010657,2]
[348604822,1736667054190,-500.0,0.00010657,2]
[348604823,1736667054199,-500.0,0.00010657,2]
[348604824,1736667054209,-892.42,0.00010657,2]
[348604825,1736667054218,-500.0,0.00010657,2]
[348604826,1736667054227,-500.0,0.00010657,2]
[348604827,1736667054236,-500.0,0.00010657,2]
[348604828,1736667054245,-500.0,0.00010657,2]
[348604829,1736667054254,-500.0,0.00010657,2]
[348604830,1736667054263,-932.06,0.00010657,2]
[348604831,1736667054272,-500.0,0.00010657,2]
[348604832,1736667054281,-540.94,0.00010657,2]
[348604833,1736667054291,-500.0,0.00010657,2]
[348604834,1736667054300,-500.0,0.00010657,2]
[348604835,1736667054310,-500.0,0.00010657,2]
[348604836,1736667054319,-761.91,0.00010657,2]
[348604837,1736667054329,-756.44,0.00010657,2]
[348604838,1736667054338,-816.1,0.00010657,2]
[348604839,1736667054347,-500.0,0.00010657,2]
[348604840,1736667054357,-500.0,0.00010657,2]
[348604841,1736667054366,-639.6,0.00010657,2]
[348604842,1736667054376,-771.9,0.00010657,2]
[348604843,1736667054385,-784.46,0.00010657,2]
[348604844,1736667054394,-661.99,0.00010657,2]
[348604845,1736667054404,-500.0,0.00010657,2]
[348604846,1736667054414,-500.0,0.00010657,2]
[348604847,1736667054424,-500.0,0.00010657,2]
[348604848,1736667054433,-615.1,0.00010657,2]
[348604849,1736667054442,-698.67,0.00010657,2]
[348604850,1736667054452,-537.18,0.00010657,2]
[348604851,1736667054461,-501.04,0.00010657,2]
[348604852,1736667054471,-1394.6,0.00010657,2]
[348604853,1736667054480,-655.9,0.00010657,2]
[348604854,1736667054490,-500.0,0.00010657,2]
[348604855,1736667054499,-500.0,0.00010657,2]
[348604856,1736667054508,-582.13,0.00010657,2]
[348604857,1736667054517,-500.0,0.00010657,2]
[348604858,1736667054526,-668.04,0.00010657,2]
[348604859,1736667054536,-4381.55,0.00010657,2]
[348604860,1736667054546,-903.65,0.00010657,2]
[348604861,1736667054556,-2711.95,0.00010657,2]
[348604862,1736667054566,-515.95,0.00010657,2]
[348604863,1736667054575,-633.91,0.00010657,2]
[348604864,1736667054585,-624.04,0.00010657,2]
[348604865,1736667054595,-500.0,0.00010657,2]
[348604866,1736667054604,-746.76,0.00010657,2]
[348604867,1736667054614,-2853.92,0.00010657,2]
[348604868,1736667054623,-500.0,0.00010657,2]
[348604869,1736667054633,-500.0,0.00010657,2]
[348604870,1736667054643,-570.29,0.00010657,2]
[348604871,1736667054653,-837.01,0.00010657,2]
[348604872,1736667054662,-500.0,0.00010657,2]
[348604873,1736667054672,-763.16,0.00010657,2]
[348604874,1736667054682,-150.0,0.00010658,2]
[348604875,1736667054691,-241.26,0.00010658,2]
[348604876,1736667054702,-150.0,0.00010658,2]
[348604877,1736667054713,-150.0,0.00010658,2]
[348604878,1736667054723,-150.0,0.00010667,2]
[348604879,1736667054732,-150.0,0.00010672,2]
[348604880,1736667054741,-501.30651244,0.00010673,2]
[348604881,1736667054751,-150.33578421,0.00010674,2]
[348604882,1736667054760,-500.0,0.00010674,2]
[348604883,1736667054770,-150.0,0.00010677,2]
[348604884,1736667054779,-378.0110676,0.00010678,2]
[348604885,1736667054789,-150.0,0.00010689,2]
[348604886,1736667054798,-1900.0,0.000107,3]
[348604887,1736667054807,-256.56029317,0.000107,2]
[348604888,1736667054816,-500.0,0.00010701,2]
[348604889,1736667054826,-150.0,0.00010703,2]
[348604890,1736667054835,-150.0,0.00010706,2]
[348604891,1736667054844,-150.0,0.00010708,2]
[348604892,1736667054854,-150.0,0.00010723,2]
[348604893,1736667054863,-227.7442351,0.00010724,2]
[348604894,1736667054872,-817.81274945,0.00010729,2]
[348604895,1736667054882,-150.0,0.0001074,2]
[348604896,1736667054891,-150.0,0.0001074,2]
[348604897,1736667054901,-150.0,0.0001074,2]
[348604898,1736667054910,-150.0,0.00010757,2]
[348604899,1736667054919,-1643.93600025,0.00010762,2]
[348604900,1736667054928,-150.0,0.00010771,2]
[348604901,1736667054938,-255.0,0.00010773,2]
[348604902,1736667054947,-150.0,0.00010773,2]
[348604903,1736667054957,-150.0,0.00010776,2]
[348604904,1736667054966,-150.0,0.00010776,2]
[348604905,1736667054975,-150.0,0.0001079,2]
[348604906,1736667054984,-150.0,0.00010791,2]
[348604907,1736667054993,-378.0110676,0.00010798,2]
[348604908,1736667055003,-793.42271533,0.00010799,2]
[348604909,1736667055011,-2400.0,0.000108,3]
[348604910,1736667055020,-150.0,0.00010802,2]
[348604911,1736667055029,-150.0,0.00010807,2]
[348604912,1736667055039,-150.0,0.00010813,2]
[348604913,1736667055048,-150.0,0.00010824,2]
[348604914,1736667055057,-150.0,0.00010834,2]
[348604915,1736667055066,-150.0,0.00010841,2]
[348604916,1736667055075,-150.0,0.00010849,2]
[348604917,1736667055085,-150.0,0.0001085,2]
[348604918,1736667055094,-150.0,0.00010858,2]
[348604919,1736667055103,-150.0,0.00010865,2]
[348604920,1736667055112,-1643.93600025,0.00010869,2]
[348604921,1736667055121,-150.0,0.00010875,2]
[348604922,1736667055130,-501.04767334,0.00010875,2]
[348604923,1736667055139,-150.0,0.00010886,2]
[348604924,1736667055148,-151.0,0.00010891,2]
[348604925,1736667055158,-500.0,0.00010891,2]
[348604926,1736667055167,-500.0,0.00010891,2]
[348604927,1736667055175,-500.0,0.00010891,2]
[348604928,1736667055186,-500.0,0.00010891,2]
[348604929,1736667055198,-500.0,0.00010891,2]
[348604930,1736667055207,-500.0,0.00010891,2]
[348604931,1736667055218,-500.0,0.00010891,2]
[348604932,1736667055227,-500.0,0.00010891,2]